fUST/lending_fUST_20260118
["ID","MTS","AMOUNT","RATE_DAILY","PERIOD"]
[402434233,1768677050488,-1502.15,0.00016438,3]
[402434234,1768677050499,-1665.75,0.00016438,3]
[402434235,1768677050510,-500.0,0.00016438,3]
[402434236,1768677050520,-500.0,0.00016438,3]
[402434237,1768677050532,-500.0,0.00016438,3]
[402434238,1768677050542,-500.0,0.00016438,3]
[402434239,1768677050552,-500.0,0.00016438,3]
[402434240,1768677050563,-500.0,0.00016438,3]
[402434241,1768677050573,-1236.21,0.00016438,3]
[402434242,1768677050584,-624.16,0.00016438,3]
[402434243,1768677050595,-2175.59,0.00016438,3]
[402434244,1768677050605,-500.0,0.00016438,3]
[402434245,1768677050615,-500.0,0.00016438,3]
[402434246,1768677050626,-500.0,0.00016438,3]
[402434247,1768677050636,-500.0,0.00016438,3]
[402434248,1768677050646,-500.0,0.00016438,3]
[402434249,1768677050657,-500.0,0.00016438,3]
[402434250,1768677050667,-543.61913102,0.00016438,3]
[402434251,1768677050677,-500.0,0.00016438,3]
[402434252,1768677050687,-500.0,0.00016438,3]
[402434253,1768677050697,-500.0,0.00016438,2]
[402434254,1768677050707,-500.0,0.00016438,2]
[402434255,1768677050718,-473.31431115,0.00016438,2]
[402434256,1768677050728,-500.0,0.00016438,3]
[402434257,1768677050738,-700.37,0.00016438,3]
[402434258,1768677050748,-500.0,0.00016438,3]
[402434259,1768677050758,-435.20636976,0.00016438,3]
[402434260,1768677050768,-500.0,0.00016438,3]
[402434261,1768677050779,-500.0,0.00016438,3]
[402434262,1768677050789,-500.0,0.00016438,3]
[402434263,1768677050808,-500.0,0.00016438,3]
[402434264,1768677050820,-500.0,0.00016438,3]
[402434265,1768677050842,-500.0,0.00016438,3]
[402434266,1768677050862,-2551.07,0.00016438,3]
[402434267,1768677050873,-500.0,0.00016438,3]
[402434268,1768677050883,-500.0,0.00016438,3]
[402434269,1768677050896,-500.0,0.00016438,3]
[402434270,1768677050906,-500.0,0.00016438,3]
[402434271,1768677050917,-1022.84,0.00016438,3]
[402434272,1768677050927,-500.0,0.00016438,3]
[402434273,1768677050938,-500.0,0.00016438,3]
[402434274,1768677050953,-500.0,0.00016438,3]
[402434275,1768677050974,-1319.94,0.00016438,3]
[402434276,1768677050992,-500.0,0.00016438,3]
[402434277,1768677051003,-500.0,0.00016438,3]
[402434278,1768677051015,-503.64,0.00016438,3]
[402434279,1768677051027,-500.0,0.00016438,3]
[402434280,1768677051039,-500.0,0.00016438,3]
[402434281,1768677051049,-813.92,0.00016438,3]
[402434282,1768677051059,-806.92,0.00016438,3]
[402434283,1768677051069,-861.36,0.00016438,3]
[402434284,1768677051080,-467.49360859,0.00016438,3]
[402434285,1768677051090,-500.0,0.00016438,3]
[402434286,1768677051102,-748.9,0.00016438,3]
[402434287,1768677051113,-2453.42,0.00016438,3]
[402434288,1768677051123,-590.49,0.00016438,3]
[402434289,1768677051135,-500.0,0.00016438,3]
[402434290,1768677051145,-500.0,0.00016438,3]
[402434291,1768677051155,-1552.9,0.00016438,3]
[402434292,1768677051165,-561.4,0.00016438,3]
[402434293,1768677051176,-1695.64,0.00016438,3]
[402434294,1768677051186,-500.0,0.00016438,3]
[402434295,1768677051196,-500.0,0.00016438,3]
[402434296,1768677051207,-1568.81,0.00016438,3]
[402434297,1768677051218,-1121.41,0.00016438,3]
[402434298,1768677051229,-1094.15,0.00016438,3]
[402434299,1768677051239,-543.12,0.00016438,3]
[402434300,1768677051251,-758.46,0.00016438,3]
[402434301,1768677051264,-500.0,0.00016438,3]
[402434302,1768677051275,-500.0,0.00016438,3]
[402434303,1768677051284,-1285.11,0.00016438,3]
[402434304,1768677051296,-917.14,0.00016438,3]
[402434305,1768677051306,-536.50517922,0.00016438,3]
[402434306,1768677051316,-500.0,0.00016438,3]
[402434307,1768677051328,-948.88,0.00016438,3]
[402434308,1768677051337,-500.0,0.00016438,3]
[402434309,1768677051347,-500.0,0.00016438,3]
[402434310,1768677051357,-500.0,0.00016438,3]
[402434311,1768677051367,-500.0,0.00016438,3]
[402434312,1768677051377,-714.16,0.00016438,3]
[402434313,1768677051387,-660.42,0.00016438,3]
[402434314,1768677051397,-520.72,0.00016438,3]
[402434315,1768677051407,-1173.22,0.00016438,3]
[402434316,1768677051417,-500.0,0.00016438,3]
[402434317,1768677051427,-500.0,0.00016438,3]
[402434318,1768677051438,-500.0,0.00016438,3]
[402434319,1768677051448,-798.37,0.00016438,3]
[402434320,1768677051458,-876.59,0.00016438,3]
[402434321,1768677051468,-500.0,0.00016438,3]
[402434322,1768677051479,-500.0,0.00016438,3]
[402434323,1768677051489,-500.0,0.00016438,3]
[402434324,1768677051499,-500.0,0.00016438,3]
[402434325,1768677051509,-500.0,0.00016438,3]
[402434326,1768677051519,-509.49,0.00016438,3]
[402434327,1768677051529,-500.0,0.00016438,3]
[402434328,1768677051539,-500.0,0.00016438,3]
[402434329,1768677051549,-500.0,0.00016438,3]
[402434330,1768677051559,-500.0,0.00016438,3]
[402434331,1768677051568,-500.0,0.00016438,3]
[402434332,1768677051579,-2552.27,0.00016438,3]
[402434333,1768677051589,-500.0,0.00016438,3]
[402434334,1768677051599,-545.8035631,0.00016438,3]
[402434335,1768677051608,-500.0,0.00016438,3]
[402434336,1768677051619,-500.0,0.00016438,3]
[402434337,1768677051629,-500.0,0.00016438,3]
[402434338,1768677051639,-609.02,0.00016438,3]
[402434339,1768677051649,-1639.55,0.00016438,3]
[402434340,1768677051659,-500.0,0.00016438,3]
[402434341,1768677051669,-844.39,0.00016438,3]
[402434342,1768677051680,-578.12,0.00016438,3]
[402434343,1768677051691,-500.0,0.00016438,3]
[402434344,1768677052087,-548.99,0.00016438,3]
[402434345,1768677052100,-500.0,0.00016438,3]
[402434346,1768677052109,-500.0,0.00016438,3]
[402434347,1768677052119,-598.89865208,0.00016438,3]
[402434348,1768677052129,-500.0,0.00016438,3]
[402434349,1768677052139,-1023.93,0.00016438,3]
[402434350,1768677052149,-500.0,0.00016438,3]
[402434351,1768677052159,-500.0,0.00016438,3]
[402434352,1768677052168,-500.0,0.00016438,3]
[402434353,1768677052178,-1911.06,0.00016438,3]
[402434354,1768677052189,-500.0,0.00016438,3]
[402434355,1768677052198,-500.0,0.00016438,3]
[402434356,1768677052208,-500.0,0.00016438,3]
[402434357,1768677052217,-500.0,0.00016438,3]
[402434358,1768677052227,-500.0,0.00016438,3]
[402434359,1768677052237,-500.0,0.00016438,3]
[402434360,1768677052251,-575.62,0.00016438,3]
[402434361,1768677052261,-500.0,0.00016438,3]
[402434362,1768677052271,-500.0,0.00016438,3]
[402434363,1768677052280,-936.53,0.00016438,3]
[402434364,1768677052291,-632.04690666,0.00016438,3]
[402434365,1768677052301,-1025.38,0.00016438,3]
[402434366,1768677052310,-1305.86,0.00016438,3]
[402434367,1768677052321,-500.0,0.00016438,3]
[402434368,1768677052331,-3403.79,0.00016438,3]
[402434369,1768677052340,-500.0,0.00016438,3]
[402434370,1768677052350,-1103.35,0.00016438,3]
[402434371,1768677052359,-500.0,0.00016438,3]
[402434372,1768677052369,-978.92,0.00016438,3]
[402434373,1768677052378,-500.0,0.00016438,3]
[402434374,1768677052388,-500.0,0.00016438,3]
[402434375,1768677052398,-1480.53,0.00016438,3]
[402434376,1768677052408,-500.0,0.00016438,3]
[402434377,1768677052418,-552.87,0.00016438,3]
[402434378,1768677052428,-500.0,0.00016438,3]
[402434379,1768677052438,-500.0,0.00016438,3]
[402434380,1768677052447,-500.0,0.00016438,3]
[402434381,1768677052456,-500.0,0.00016438,3]
[402434382,1768677052466,-500.0,0.00016438,3]
[402434383,1768677052476,-500.0,0.00016438,3]
[402434384,1768677052486,-860.55,0.00016438,3]
[402434385,1768677052496,-500.0,0.00016438,3]
[402434386,1768677052505,-598.38,0.00016438,3]
[402434387,1768677052515,-1148.17,0.00016438,3]
[402434388,1768677052525,-2015.39,0.00016438,3]
[402434389,1768677052534,-500.0,0.00016438,3]
[402434390,1768677052544,-500.0,0.00016438,3]
[402434391,1768677052554,-674.52,0.00016438,3]
[402434392,1768677052564,-636.57,0.00016438,3]
[402434393,1768677052574,-500.0,0.00016438,3]
[402434394,1768677052584,-1399.24,0.00016438,3]
[402434395,1768677052593,-362.08497691,0.00016438,3]
[402434396,1768677052603,-1168.23,0.00016438,3]
[402434397,1768677052613,-500.0,0.00016438,3]
[402434398,1768677052623,-2392.5,0.00016438,2]
[402434399,1768677052633,-2392.5,0.00016438,2]
[402434400,1768677052642,-622.64063856,0.00016438,3]
[402434401,1768677052652,-2392.5,0.00016438,2]
[402434402,1768677052662,-2392.5,0.00016438,2]
[402434403,1768677052673,-2392.5,0.00016438,2]
[402434404,1768677052683,-2392.5,0.00016438,2]
[402434405,1768677052694,-2392.5,0.00016438,2]
[402434406,1768677052705,-2392.5,0.00016438,2]
[402434407,1768677052716,-2392.5,0.00016438,2]
[402434408,1768677052726,-2392.5,0.00016438,2]
[402434409,1768677052736,-2392.5,0.00016438,2]
[402434410,1768677052746,-2392.5,0.00016438,2]
[402434411,1768677052756,-2392.5,0.00016438,2]
[402434412,1768677052766,-2392.5,0.00016438,2]
[402434413,1768677052775,-2392.5,0.00016438,2]
[402434414,1768677052785,-2392.5,0.00016438,2]
[402434415,1768677052794,-2392.5,0.00016438,2]
[402434416,1768677052804,-2392.5,0.00016438,2]
[402434417,1768677052814,-500.0,0.00016438,3]
[402434418,1768677052823,-1114.84,0.00016438,3]
[402434419,1768677052833,-2392.5,0.00016438,2]
[402434420,1768677052843,-2392.5,0.00016438,2]
[402434421,1768677052853,-2897.63,0.00016438,3]
[402434422,1768677052862,-2392.5,0.00016438,2]
[402434423,1768677052872,-1569.6,0.00016438,3]
[402434424,1768677052882,-2392.5,0.00016438,2]
[402434425,1768677052891,-597.82,0.00016438,3]
[402434426,1768677052901,-2392.5,0.00016438,2]
[402434427,1768677052911,-500.0,0.00016438,3]
[402434428,1768677052920,-2392.63255502,0.00016438,2]
[402434429,1768677052930,-263.30228,0.00016438,2]
[402434430,1768677052939,-263.30228,0.00016438,2]
[402434431,1768677052950,-644.89,0.00016438,3]
[402434432,1768677052960,-263.30228,0.00016438,2]
[402434433,1768677052970,-263.30228,0.00016438,2]
[402434434,1768677052979,-263.30228,0.00016438,2]
[402434435,1768677052989,-263.30228,0.00016438,2]
[402434436,1768677052999,-500.0,0.00016438,3]
[402434437,1768677053009,-332.91217118,0.00016438,3]
[402434438,1768677053020,-500.0,0.00016438,3]
[402434439,1768677053030,-263.30228,0.00016438,2]
[402434440,1768677053041,-263.30228,0.00016438,2]
[402434441,1768677053051,-500.0,0.00016438,3]
[402434442,1768677053061,-309.96810054,0.00016438,3]
[402434443,1768677053072,-500.0,0.00016438,3]
[402434444,1768677053082,-500.0,0.00016438,3]
[402434445,1768677053091,-211.62283602,0.00016438,3]
[402434446,1768677053100,-500.0,0.00016438,3]
[402434447,1768677053110,-1380.77,0.00016438,3]
[402434448,1768677053119,-500.0,0.00016438,3]
[402434449,1768677053129,-539.32,0.00016438,3]
[402434450,1768677053139,-1474.73,0.00016438,3]
[402434451,1768677053149,-500.0,0.00016438,2]
[402434452,1768677053159,-1321.15,0.00016438,3]
[402434453,1768677053168,-539.86,0.00016438,3]
[402434454,1768677053178,-500.0,0.00016438,3]
[402434455,1768677053187,-500.0,0.00016438,3]
[402434456,1768677053197,-537.6,0.00016438,3]
[402434457,1768677053207,-500.0,0.00016438,3]
[402434458,1768677053217,-1249.71,0.00016438,3]
[402434459,1768677053227,-423.66716387,0.00016438,3]
[402434460,1768677053238,-500.0,0.00016438,3]
[402434461,1768677053250,-500.0,0.00016438,3]
[402434462,1768677053260,-500.0,0.00016438,3]
[402434463,1768677053271,-14376.21,0.00016438,3]
[402434464,1768677053280,-500.0,0.00016438,3]
[402434465,1768677053291,-1505.84,0.00016438,3]
[402434466,1768677053300,-500.0,0.00016438,2]
[402434467,1768677053311,-500.0,0.00016438,3]
[402434468,1768677053320,-500.0,0.00016438,3]
[402434469,1768677053330,-500.0,0.00016438,3]
[402434470,1768677053339,-795.91,0.00016438,3]
[402434471,1768677053349,-200.53732028,0.00016438,3]
[402434472,1768677053359,-500.0,0.00016438,2]
[402434473,1768677053368,-183.181997,0.00016438,2]
[402434474,1768677053377,-183.181997,0.00016438,2]
[402434475,1768677053386,-183.181997,0.00016438,2]
[402434476,1768677053395,-183.181997,0.00016438,2]
[402434477,1768677053405,-183.181997,0.00016438,2]
[402434478,1768677053414,-183.181997,0.00016438,2]
[402434479,1768677053423,-183.181997,0.00016438,2]
[402434480,1768677053432,-183.181997,0.00016438,2]
[402434481,1768677053442,-3000.0,0.00016438,2]
[402434482,1768677053451,-498.0,0.0001644,2]
[402434483,1768677053460,-500.0,0.00016482,2]
[402434484,1768677053469,-178.2555158,0.00016493,2]
[402434485,1768677053479,-745.0,0.00016514,2]
[402434486,1768677053488,-498.0,0.00016518,2]
[402434487,1768677053497,-478.75725327,0.00016561,2]
[402434488,1768677053507,-323.39571937,0.00016561,2]
[402434489,1768677053516,-151.0,0.00016561,2]
[402434490,1768677053525,-32261.07,0.00016561,2]
[402434491,1768677053534,-2312.83697232,0.00016561,2]
[402434492,1768677053543,-13514.6156068,0.00016608,2]
[402434493,1768677053552,-500.0,0.00016637,2]
[402434494,1768677053561,-13295.5543722,0.00016653,2]
[402434495,1768677053571,-745.0,0.00016669,2]
[402434496,1768677053580,-498.0,0.00016681,2]
[402434497,1768677053589,-200.38413813,0.00016712,3]
[402434498,1768677053599,-500.0,0.00016712,3]
[402434499,1768677053608,-500.0,0.00016712,3]
[402434500,1768677053618,-500.0,0.00016712,3]
[402434501,1768677053627,-500.0,0.00016712,3]
[402434502,1768677053636,-500.0,0.00016712,3]
[402434503,1768677053645,-500.0,0.00016712,3]
[402434504,1768677053654,-500.0,0.00016712,3]
[402434505,1768677053662,-500.0,0.00016712,3]
[402434506,1768677053671,-500.0,0.00016712,3]
[402434507,1768677053680,-500.0,0.00016712,3]
[402434508,1768677053689,-500.0,0.00016712,3]
[402434509,1768677053698,-500.0,0.00016712,3]
[402434510,1768677053707,-500.0,0.00016712,3]
[402434511,1768677053717,-500.0,0.00016712,3]
[402434512,1768677053726,-500.0,0.00016712,3]
[402434513,1768677053735,-500.0,0.00016712,3]
[402434514,1768677053743,-500.0,0.00016712,3]
[402434515,1768677053752,-500.0,0.00016712,3]
[402434516,1768677053761,-500.0,0.00016712,3]
[402434517,1768677053770,-500.0,0.00016712,3]
[402434518,1768677053779,-500.0,0.00016712,3]
[402434519,1768677053788,-500.0,0.00016712,3]
[402434520,1768677053797,-819.06,0.00016712,3]
[402434521,1768677053806,-500.0,0.00016712,3]
[402434522,1768677053815,-1100.98,0.00016712,3]
[402434523,1768677053824,-500.0,0.00016712,3]
[402434524,1768677053833,-500.0,0.00016712,3]
[402434525,1768677053842,-500.0,0.00016712,3]
[402434526,1768677053851,-1054.14,0.00016712,3]
[402434527,1768677053860,-500.0,0.00016712,3]
[402434528,1768677053869,-375.27196908,0.00016712,3]
[402434529,1768677053879,-500.0,0.00016712,3]
[402434530,1768677053888,-500.0,0.00016712,3]
[402434531,1768677053897,-500.0,0.00016712,3]
[402434532,1768677053907,-500.0,0.00016712,3]
[402434533,1768677053916,-500.0,0.00016712,3]
[402434534,1768677053925,-500.0,0.00016712,3]
[402434535,1768677053934,-756.12,0.00016712,3]
[402434536,1768677053943,-500.0,0.00016712,3]
[402434537,1768677053952,-500.0,0.00016712,3]
[402434538,1768677053966,-500.0,0.00016712,3]
[402434539,1768677053976,-1000.0,0.00016712,2]
[402434540,1768677053986,-500.0,0.00016712,3]
[402434541,1768677053996,-500.0,0.00016712,3]
[402434542,1768677054007,-654.72,0.00016712,3]
[402434543,1768677054017,-541.19,0.00016712,3]
[402434544,1768677054027,-995.34,0.00016712,3]
[402434545,1768677054037,-500.0,0.00016712,3]
[402434546,1768677054047,-500.0,0.00016712,3]
[402434547,1768677054056,-500.0,0.00016712,3]
[402434548,1768677054065,-500.0,0.00016712,3]
[402434549,1768677054075,-500.0,0.00016712,3]
[402434550,1768677054084,-1414.85,0.00016712,3]
[402434551,1768677054094,-500.0,0.00016712,3]
[402434552,1768677054104,-241.75904852,0.00016712,3]
[402434553,1768677054114,-500.0,0.00016712,3]
[402434554,1768677054123,-500.0,0.00016712,3]
[402434555,1768677054132,-500.0,0.00016712,3]
[402434556,1768677054142,-500.0,0.00016712,3]
[402434557,1768677054152,-500.0,0.00016712,3]
[402434558,1768677054161,-500.0,0.00016712,3]
[402434559,1768677054171,-500.0,0.00016712,3]
[402434560,1768677054180,-500.0,0.00016712,3]
[402434561,1768677054189,-500.0,0.00016712,3]
[402434562,1768677054198,-500.0,0.00016712,3]
[402434563,1768677054208,-500.0,0.00016712,3]
[402434564,1768677054218,-500.0,0.00016712,3]
[402434565,1768677054227,-500.0,0.00016712,3]
[402434566,1768677054237,-500.0,0.00016712,3]
[402434567,1768677054249,-619.42,0.00016712,3]
[402434568,1768677054259,-500.0,0.00016712,3]
[402434569,1768677054269,-500.0,0.00016712,3]
[402434570,1768677054280,-500.0,0.00016712,3]
[402434571,1768677054291,-500.0,0.00016712,3]
[402434572,1768677054301,-505.08,0.00016712,3]
[402434573,1768677054311,-500.0,0.00016712,3]
[402434574,1768677054323,-500.0,0.00016712,3]
[402434575,1768677054333,-500.0,0.00016712,3]
[402434576,1768677054342,-500.0,0.00016712,3]
[402434577,1768677054352,-530.75,0.00016712,3]
[402434578,1768677054362,-500.0,0.00016712,3]
[402434579,1768677054372,-814.58,0.00016712,3]
[402434580,1768677054381,-304.69534223,0.00016712,3]
[402434581,1768677054391,-500.0,0.00016712,3]
[402434582,1768677054507,-1103.53,0.00016712,3]
[402434583,1768677054516,-863.13,0.00016712,3]
[402434584,1768677054526,-500.0,0.00016712,3]
[402434585,1768677054535,-151.0,0.00016712,2]
[402434586,1768677054544,-500.0,0.00016712,3]
[402434587,1768677054554,-500.0,0.00016712,3]
[402434588,1768677054563,-500.0,0.00016712,3]
[402434589,1768677054573,-688.71,0.00016712,3]
[402434590,1768677054582,-500.0,0.00016712,3]
[402434591,1768677054592,-500.0,0.00016712,3]
[402434592,1768677054601,-653.28,0.00016712,3]
[402434593,1768677054611,-500.0,0.00016712,3]
[402434594,1768677054620,-500.0,0.00016712,3]
[402434595,1768677054629,-526.42,0.00016712,3]
[402434596,1768677054638,-574.969696,0.00016712,3]
[402434597,1768677054648,-500.0,0.00016712,3]
[402434598,1768677054658,-500.0,0.00016712,3]
[402434599,1768677054667,-500.0,0.00016712,3]
[402434600,1768677054676,-821.72,0.00016712,3]
[402434601,1768677054685,-500.0,0.00016712,3]
[402434602,1768677054695,-216.1398381,0.00016712,3]
[402434603,1768677054704,-500.0,0.00016712,3]
[402434604,1768677054714,-500.0,0.00016712,3]
[402434605,1768677054724,-1355.32,0.00016712,3]
[402434606,1768677054735,-500.0,0.00016712,3]
[402434607,1768677054744,-500.0,0.00016712,2]
[402434608,1768677054754,-500.0,0.00016712,3]
[402434609,1768677054763,-526.18,0.00016712,3]
[402434610,1768677054775,-500.0,0.00016712,3]
[402434611,1768677054785,-500.0,0.00016712,3]
[402434612,1768677054794,-859.78,0.00016712,3]
[402434613,1768677054804,-500.0,0.00016712,3]
[402434614,1768677054813,-500.0,0.00016712,3]
[402434615,1768677054823,-500.0,0.00016712,3]
[402434616,1768677054832,-500.0,0.00016712,3]
[402434617,1768677054842,-500.0,0.00016712,3]
[402434618,1768677054851,-465.90987905,0.00016712,3]
[402434619,1768677054861,-500.0,0.00016712,3]
[402434620,1768677054871,-500.0,0.00016712,3]
[402434621,1768677054881,-500.0,0.00016712,3]
[402434622,1768677054890,-500.0,0.00016712,3]
[402434623,1768677054899,-796.76,0.00016712,3]
[402434624,1768677054908,-947.02,0.00016712,3]
[402434625,1768677054918,-500.0,0.00016712,3]
[402434626,1768677054927,-500.0,0.00016712,3]
[402434627,1768677054936,-500.0,0.00016712,3]
[402434628,1768677054946,-1676.18,0.00016712,3]
[402434629,1768677054955,-500.0,0.00016712,3]
[402434630,1768677054965,-500.0,0.00016712,3]
[402434631,1768677054975,-500.0,0.00016712,3]
[402434632,1768677054985,-500.0,0.00016712,3]
[402434633,1768677054994,-500.0,0.00016712,3]
[402434634,1768677055003,-1422.11,0.00016712,3]
[402434635,1768677055012,-500.0,0.00016712,3]
[402434636,1768677055022,-500.0,0.00016712,3]
[402434637,1768677055031,-700.16,0.00016712,3]
[402434638,1768677055040,-1271.86,0.00016712,3]
[402434639,1768677055050,-500.0,0.00016712,3]
[402434640,1768677055059,-500.0,0.00016712,3]
[402434641,1768677055068,-555.26,0.00016712,3]
[402434642,1768677055078,-1185.41,0.00016712,3]
[402434643,1768677055087,-972.25,0.00016712,3]
[402434644,1768677055097,-500.0,0.00016712,3]
[402434645,1768677055105,-500.0,0.00016712,3]
[402434646,1768677055115,-500.0,0.00016712,3]
[402434647,1768677055125,-500.0,0.00016712,3]
[402434648,1768677055134,-1029.8,0.00016712,3]
[402434649,1768677055144,-500.0,0.00016712,3]
[402434650,1768677055154,-500.0,0.00016712,3]
[402434651,1768677055163,-500.0,0.00016712,3]
[402434652,1768677055173,-500.0,0.00016712,3]
[402434653,1768677055183,-1204.44,0.00016712,3]
[402434654,1768677055192,-500.0,0.00016712,3]
[402434655,1768677055202,-500.0,0.00016712,3]
[402434656,1768677055211,-778.71,0.00016712,3]
[402434657,1768677055221,-1032.1,0.00016712,3]
[402434658,1768677055231,-500.0,0.00016712,3]
[402434659,1768677055240,-500.0,0.00016712,2]
[402434660,1768677055254,-500.0,0.00016712,3]
[402434661,1768677055263,-500.0,0.00016712,3]
[402434662,1768677055272,-500.0,0.00016712,3]
[402434663,1768677055282,-500.0,0.00016712,3]
[402434664,1768677055293,-500.0,0.00016712,3]
[402434665,1768677055302,-500.0,0.00016712,3]
[402434666,1768677055312,-500.0,0.00016712,3]
[402434667,1768677055324,-500.0,0.00016712,3]
[402434668,1768677055334,-500.0,0.00016712,3]
[402434669,1768677055344,-500.0,0.00016712,3]
[402434670,1768677055353,-862.94,0.00016712,3]
[402434671,1768677055363,-500.0,0.00016712,3]
[402434672,1768677055372,-500.0,0.00016712,3]
[402434673,1768677055382,-500.0,0.00016712,3]
[402434674,1768677055391,-474.92477012,0.00016712,3]
[402434675,1768677055400,-500.0,0.00016712,3]
[402434676,1768677055409,-824.42,0.00016712,3]
[402434677,1768677055419,-500.0,0.00016712,3]
[402434678,1768677055429,-972.71,0.00016712,3]
[402434679,1768677055440,-505.28,0.00016712,3]
[402434680,1768677055450,-500.0,0.00016712,3]
[402434681,1768677055462,-500.0,0.00016712,3]
[402434682,1768677055472,-500.0,0.00016712,3]
[402434683,1768677055482,-500.0,0.00016712,3]
[402434684,1768677055491,-676.38,0.00016712,3]
[402434685,1768677055500,-500.0,0.00016712,3]
[402434686,1768677055510,-500.0,0.00016712,3]
[402434687,1768677055520,-500.0,0.00016712,3]
[402434688,1768677055530,-500.0,0.00016712,3]
[402434689,1768677055540,-500.0,0.00016712,3]
[402434690,1768677055550,-529.4766639,0.00016712,3]
[402434691,1768677055561,-586.6276719,0.00016712,3]
[402434692,1768677055571,-718.46,0.00016712,3]
[402434693,1768677055580,-500.0,0.00016712,3]
[402434694,1768677055591,-500.0,0.00016712,3]
[402434695,1768677055600,-795.48,0.00016712,3]
[402434696,1768677055610,-500.0,0.00016712,3]
[402434697,1768677055620,-500.0,0.00016712,3]
[402434698,1768677055630,-1494.36,0.00016712,3]
[402434699,1768677055640,-500.0,0.00016712,3]
[402434700,1768677055649,-527.51,0.00016712,3]
[402434701,1768677055658,-1636.62,0.00016712,3]
[402434702,1768677055667,-500.0,0.00016712,3]
[402434703,1768677055677,-500.0,0.00016712,3]
[402434704,1768677055687,-500.0,0.00016712,3]
[402434705,1768677055697,-955.79,0.00016712,3]
[402434706,1768677055707,-500.0,0.00016712,3]
[402434707,1768677055716,-474.79408976,0.00016712,3]
[402434708,1768677055726,-580.87,0.00016712,3]
[402434709,1768677055736,-752.06,0.00016712,3]
[402434710,1768677055745,-500.0,0.00016712,3]
[402434711,1768677055755,-500.0,0.00016712,3]
[402434712,1768677055765,-500.0,0.00016712,3]
[402434713,1768677055775,-905.51,0.00016712,3]
[402434714,1768677055785,-500.0,0.00016712,3]
[402434715,1768677055796,-1208.54,0.00016712,3]
[402434716,1768677055805,-183.181997,0.00016712,2]
[402434717,1768677055815,-1438.2,0.00016712,3]
[402434718,1768677055826,-1688.51,0.00016712,3]
[402434719,1768677055835,-183.181997,0.00016712,2]
[402434720,1768677055845,-183.181997,0.00016712,2]
[402434721,1768677055855,-500.0,0.00016712,3]
[402434722,1768677055865,-183.181997,0.00016712,2]
[402434723,1768677055875,-500.0,0.00016712,3]
[402434724,1768677055884,-502.72122114,0.00016712,3]
[402434725,1768677055894,-500.0,0.00016712,3]
[402434726,1768677055904,-932.73,0.00016712,3]
[402434727,1768677055913,-500.0,0.00016712,3]
[402434728,1768677055924,-706.53,0.00016712,3]
[402434729,1768677055933,-947.08,0.00016712,3]
[402434730,1768677055943,-1057.27,0.00016712,3]
[402434731,1768677055952,-500.0,0.00016712,3]
[402434732,1768677055961,-2004.45,0.00016712,3]